[Event "Titled Tuesday Blitz February 01 A 2022"]
[White "Maevsky, Nikolay"]
[Black "Postny, Evgeny"]
[WhiteFideId "4198220"]
[BlackFideId "2804344"]
[WhiteElo "2104"]
[BlackElo "2483"]
[Result "0-1"]
[Round "08"]
[TimeControl "180+1"]
[Date "2022.02.01"]
[WhiteClock "0:00:01"]
[BlackClock "0:00:12"]

1. d4 {[%clk 0:03:00]}  Nf6 {[%clk 0:02:56]} 2. Nf3 {[%clk 0:03:01]}  c5 {[%clk 0:02:56]} 3. d5 {[%clk 0:02:53]}  g6 {[%clk 0:02:56]} 4. c4 {[%clk 0:02:53]}  Bg7 {[%clk 0:02:56]} 5. Nc3 {[%clk 0:02:54]}  d6 {[%clk 0:02:57]} 6. e4 {[%clk 0:02:53]}  Bg4 {[%clk 0:02:57]} 7. Be2 {[%clk 0:02:52]}  O-O {[%clk 0:02:58]} 8. O-O {[%clk 0:02:52]}  Na6 {[%clk 0:02:57]} 9. Bf4 {[%clk 0:02:52]}  Nd7 {[%clk 0:02:56]} 10. h3 {[%clk 0:02:44]}  Bxf3 {[%clk 0:02:56]} 11. Bxf3 {[%clk 0:02:45]}  Nc7 {[%clk 0:02:57]} 12. Be2 {[%clk 0:02:42]}  a6 {[%clk 0:02:49]} 13. a4 {[%clk 0:02:42]}  b6 {[%clk 0:02:48]} 14. Qd2 {[%clk 0:02:41]}  Re8 {[%clk 0:02:45]} 15. Rfe1 {[%clk 0:02:36]}  Bd4 {[%clk 0:02:44]} 16. Bf1 {[%clk 0:02:29]}  e5 {[%clk 0:02:40]} 17. dxe6 {[%clk 0:02:21]}  Nxe6 {[%clk 0:02:38]} 18. Bxd6 {[%clk 0:02:12]}  Ne5 {[%clk 0:02:29]} 19. Bxe5 {[%clk 0:02:11]}  Bxe5 {[%clk 0:02:29]} 20. Nd5 {[%clk 0:02:09]}  Nd4 {[%clk 0:02:12]} 21. Ra3 {[%clk 0:02:08]}  Bg7 {[%clk 0:02:07]} 22. f4 {[%clk 0:01:46]}  Qh4 {[%clk 0:01:56]} 23. g3 {[%clk 0:01:20]}  Qd8 {[%clk 0:01:56]} 24. Bg2 {[%clk 0:01:14]}  b5 {[%clk 0:01:52]} 25. axb5 {[%clk 0:01:12]}  axb5 {[%clk 0:01:49]} 26. Rxa8 {[%clk 0:01:11]}  Qxa8 {[%clk 0:01:50]} 27. Nc7 {[%clk 0:01:11]}  Qd8 {[%clk 0:01:50]} 28. Nd5 {[%clk 0:01:02]}  bxc4 {[%clk 0:01:47]} 29. e5 {[%clk 0:00:57]}  Qb8 {[%clk 0:01:41]} 30. Qc3 {[%clk 0:00:53]}  Bxe5 {[%clk 0:01:26]} 31. fxe5 {[%clk 0:00:46]}  Rxe5 {[%clk 0:01:27]} 32. Nf6+ {[%clk 0:00:36]}  Kg7 {[%clk 0:01:22]} 33. Nd7 {[%clk 0:00:35]}  Rxe1+ {[%clk 0:00:48]} 34. Qxe1 {[%clk 0:00:36]}  Qxb2 {[%clk 0:00:41]} 35. Qe5+ {[%clk 0:00:33]}  Kh6 {[%clk 0:00:41]} 36. Qf4+ {[%clk 0:00:23]}  Kg7 {[%clk 0:00:41]} 37. Qf6+ {[%clk 0:00:19]}  Kh6 {[%clk 0:00:41]} 38. Qxf7 {[%clk 0:00:10]}  Ne2+ {[%clk 0:00:24]} 39. Kh2 {[%clk 0:00:10]}  Qd4 {[%clk 0:00:23]} 40. Qf8+ {[%clk 0:00:09]}  Qg7 {[%clk 0:00:23]} 41. Qxg7+ {[%clk 0:00:03]}  Kxg7 {[%clk 0:00:23]} 42. Nxc5 {[%clk 0:00:03]}  Kf6 {[%clk 0:00:22]} 43. Ne4+ {[%clk 0:00:03]}  Ke5 {[%clk 0:00:22]} 44. Nd2 {[%clk 0:00:03]}  c3 {[%clk 0:00:21]} 45. Nb3 {[%clk 0:00:03]}  c2 {[%clk 0:00:15]} 46. Bf3 {[%clk 0:00:02]}  Nd4 {[%clk 0:00:13]} 47. Nc1 {[%clk 0:00:01]}  Nxf3+ {[%clk 0:00:13]} 48. Kg2 {[%clk 0:00:01]}  Ke4 {[%clk 0:00:13]} 49. Kf2 {[%clk 0:00:01]}  Nd4 {[%clk 0:00:12]} 50. Ke1 {[%clk 0:00:01]}  Ke3 {[%clk 0:00:12]} 51. h4 {[%clk 0:00:01]}  h5 {[%clk 0:00:12]} 52. g4 {[%clk 0:00:01]}  hxg4 {[%clk 0:00:12]} 0-1


[Site "https://www.chess.com"]

[Event "Titled Tuesday Blitz February 01 A 2022"]
[White "Paravyan, David"]
[Black "Vasquez Schroeder, Rodrigo"]
[WhiteFideId "4194985"]
[BlackFideId "3400042"]
[WhiteElo "3036"]
[BlackElo "2867"]
[Result "1/2-1/2"]
[Round "08"]
[TimeControl "180+1"]
[Date "2022.02.01"]
[WhiteClock "0:01:04"]
[BlackClock "0:02:19"]

1. e4 {[%clk 0:03:00]}  c6 {[%clk 0:02:59]} 2. d4 {[%clk 0:03:00]}  d5 {[%clk 0:03:00]} 3. e5 {[%clk 0:02:58]}  Bf5 {[%clk 0:02:59]} 4. Bd3 {[%clk 0:02:57]}  Bxd3 {[%clk 0:02:58]} 5. Qxd3 {[%clk 0:02:58]}  e6 {[%clk 0:02:58]} 6. Ne2 {[%clk 0:02:58]}  Qa5+ {[%clk 0:02:57]} 7. Nd2 {[%clk 0:02:58]}  Qa6 {[%clk 0:02:57]} 8. c4 {[%clk 0:02:57]}  Bb4 {[%clk 0:02:53]} 9. Qg3 {[%clk 0:02:50]}  Ne7 {[%clk 0:02:52]} 10. Qxg7 {[%clk 0:02:37]}  Rg8 {[%clk 0:02:52]} 11. Qxh7 {[%clk 0:02:37]}  Qxc4 {[%clk 0:02:50]} 12. Kf1 {[%clk 0:02:15]}  Bxd2 {[%clk 0:02:43]} 13. Bxd2 {[%clk 0:02:16]}  Nd7 {[%clk 0:02:43]} 14. b3 {[%clk 0:01:58]}  Qb5 {[%clk 0:02:40]} 15. h4 {[%clk 0:01:54]}  Nf8 {[%clk 0:02:39]} 16. Qc2 {[%clk 0:01:35]}  Nf5 {[%clk 0:02:40]} 17. Qc5 {[%clk 0:01:33]}  Qxc5 {[%clk 0:02:36]} 18. dxc5 {[%clk 0:01:32]}  Nd7 {[%clk 0:02:36]} 19. h5 {[%clk 0:01:13]}  Nxc5 {[%clk 0:02:35]} 20. f3 {[%clk 0:01:13]}  Nd7 {[%clk 0:02:30]} 21. g4 {[%clk 0:01:11]}  Ne7 {[%clk 0:02:31]} 22. Bf4 {[%clk 0:01:06]}  Kf8 {[%clk 0:02:18]} 23. Bh6+ {[%clk 0:01:05]}  Ke8 {[%clk 0:02:18]} 24. Bf4 {[%clk 0:01:06]}  Kf8 {[%clk 0:02:19]} 25. Bh6+ {[%clk 0:01:03]}  Ke8 {[%clk 0:02:19]} 26. Bf4 {[%clk 0:01:04]}  Kf8 {[%clk 0:02:19]} 1/2-1/2


[Site "https://www.chess.com"]

[Event "Titled Tuesday Blitz February 01 A 2022"]
[White "Saravana, Krishnan P."]
[Black "Corrales Jimenez, Fidel"]
[WhiteFideId "5018382"]
[BlackFideId "3506690"]
[WhiteElo "2584"]
[BlackElo "2835"]
[Result "0-1"]
[Round "08"]
[TimeControl "180+1"]
[Date "2022.02.01"]
[WhiteClock "0:00:05"]
[BlackClock "0:00:12"]

1. e4 {[%clk 0:03:00]}  c5 {[%clk 0:02:54]} 2. Nf3 {[%clk 0:03:00]}  d6 {[%clk 0:02:55]} 3. Bb5+ {[%clk 0:02:59]}  Nd7 {[%clk 0:02:54]} 4. O-O {[%clk 0:02:58]}  Nf6 {[%clk 0:02:53]} 5. Ba4 {[%clk 0:02:58]}  e6 {[%clk 0:02:53]} 6. c4 {[%clk 0:02:57]}  Be7 {[%clk 0:02:52]} 7. Nc3 {[%clk 0:02:58]}  O-O {[%clk 0:02:52]} 8. d4 {[%clk 0:02:57]}  cxd4 {[%clk 0:02:51]} 9. Nxd4 {[%clk 0:02:57]}  a6 {[%clk 0:02:38]} 10. Be3 {[%clk 0:02:55]}  Qc7 {[%clk 0:02:36]} 11. Bb3 {[%clk 0:02:53]}  b6 {[%clk 0:02:29]} 12. f3 {[%clk 0:02:51]}  Bb7 {[%clk 0:02:29]} 13. Rc1 {[%clk 0:02:51]}  Rac8 {[%clk 0:02:29]} 14. Kh1 {[%clk 0:02:50]}  Rfd8 {[%clk 0:02:27]} 15. a3 {[%clk 0:02:50]}  Qb8 {[%clk 0:02:27]} 16. Qe1 {[%clk 0:02:46]}  Nc5 {[%clk 0:02:26]} 17. Bc2 {[%clk 0:02:45]}  g6 {[%clk 0:02:09]} 18. Qf2 {[%clk 0:02:42]}  d5 {[%clk 0:02:07]} 19. cxd5 {[%clk 0:02:26]}  exd5 {[%clk 0:02:08]} 20. Rce1 {[%clk 0:02:11]}  Bd6 {[%clk 0:01:58]} 21. Qh4 {[%clk 0:02:06]}  Nh5 {[%clk 0:01:33]} 22. exd5 {[%clk 0:01:51]}  Re8 {[%clk 0:01:30]} 23. Bg1 {[%clk 0:01:44]}  Bg3 {[%clk 0:01:04]} 24. Rxe8+ {[%clk 0:01:31]}  Rxe8 {[%clk 0:01:05]} 25. Qh3 {[%clk 0:01:28]}  Bc8 {[%clk 0:01:04]} 26. Bf5 {[%clk 0:01:24]}  Bxf5 {[%clk 0:00:32]} 27. Nxf5 {[%clk 0:01:22]}  Be5 {[%clk 0:00:33]} 28. g3 {[%clk 0:01:10]}  Nd3 {[%clk 0:00:25]} 29. Nh6+ {[%clk 0:00:56]}  Kg7 {[%clk 0:00:24]} 30. Ng4 {[%clk 0:00:52]}  Nxb2 {[%clk 0:00:19]} 31. Ne4 {[%clk 0:00:42]}  f5 {[%clk 0:00:18]} 32. Nxe5 {[%clk 0:00:35]}  Qxe5 {[%clk 0:00:19]} 33. Ng5 {[%clk 0:00:24]}  Qxd5 {[%clk 0:00:19]} 34. Qg2 {[%clk 0:00:22]}  Nc4 {[%clk 0:00:19]} 35. Rc1 {[%clk 0:00:19]}  h6 {[%clk 0:00:19]} 36. Nh3 {[%clk 0:00:17]}  b5 {[%clk 0:00:19]} 37. a4 {[%clk 0:00:17]}  Qd3 {[%clk 0:00:17]} 38. axb5 {[%clk 0:00:16]}  Re2 {[%clk 0:00:18]} 39. Qf1 {[%clk 0:00:16]}  axb5 {[%clk 0:00:18]} 40. Rd1 {[%clk 0:00:15]}  Nd2 {[%clk 0:00:18]} 41. Rxd2 {[%clk 0:00:14]}  Qxd2 {[%clk 0:00:18]} 42. Qa1+ {[%clk 0:00:14]}  Kf7 {[%clk 0:00:16]} 43. Qa7+ {[%clk 0:00:14]}  Re7 {[%clk 0:00:16]} 44. Qc5 {[%clk 0:00:14]}  Qd3 {[%clk 0:00:13]} 45. Kg2 {[%clk 0:00:14]}  g5 {[%clk 0:00:12]} 46. Nf2 {[%clk 0:00:12]}  Qd7 {[%clk 0:00:12]} 47. Qc3 {[%clk 0:00:11]}  Nf6 {[%clk 0:00:12]} 48. Nd3 {[%clk 0:00:11]}  Qe6 {[%clk 0:00:12]} 49. Bd4 {[%clk 0:00:10]}  Qe2+ {[%clk 0:00:10]} 50. Bf2 {[%clk 0:00:07]}  g4 {[%clk 0:00:11]} 51. fxg4 {[%clk 0:00:06]}  fxg4 {[%clk 0:00:12]} 52. Ne5+ {[%clk 0:00:06]}  Qxe5 {[%clk 0:00:12]} 53. Qb3+ {[%clk 0:00:05]}  Qe6 {[%clk 0:00:11]} 54. Qd3 {[%clk 0:00:05]}  Qd5+ {[%clk 0:00:11]} 55. Qxd5+ {[%clk 0:00:05]}  Nxd5 {[%clk 0:00:12]} 0-1


[Site "https://www.chess.com"]

[Event "Titled Tuesday Blitz February 01 A 2022"]
[White "Savchenko, Boris"]
[Black "Grischuk, Alexander"]
[WhiteFideId "4147332"]
[BlackFideId "4126025"]
[WhiteElo "2881"]
[BlackElo "3035"]
[Result "1-0"]
[Round "08"]
[TimeControl "180+1"]
[Date "2022.02.01"]
[WhiteClock "0:00:38"]
[BlackClock "0:00:03"]

1. e4 {[%clk 0:03:00]}  c6 {[%clk 0:02:46]} 2. d4 {[%clk 0:02:47]}  d5 {[%clk 0:02:46]} 3. Nc3 {[%clk 0:02:48]}  dxe4 {[%clk 0:02:46]} 4. Nxe4 {[%clk 0:02:49]}  Nd7 {[%clk 0:02:46]} 5. Ng5 {[%clk 0:02:46]}  h6 {[%clk 0:02:45]} 6. Ne6 {[%clk 0:02:45]}  Qb6 {[%clk 0:02:45]} 7. Nxf8 {[%clk 0:02:43]}  Nxf8 {[%clk 0:02:46]} 8. Qd3 {[%clk 0:02:42]}  Nf6 {[%clk 0:02:38]} 9. Nf3 {[%clk 0:02:32]}  Ne6 {[%clk 0:02:23]} 10. Be2 {[%clk 0:02:28]}  O-O {[%clk 0:02:23]} 11. b3 {[%clk 0:02:18]}  Rd8 {[%clk 0:02:20]} 12. Bb2 {[%clk 0:02:18]}  c5 {[%clk 0:02:15]} 13. O-O-O {[%clk 0:02:16]}  Nxd4 {[%clk 0:02:08]} 14. Nxd4 {[%clk 0:02:14]}  e5 {[%clk 0:02:06]} 15. c3 {[%clk 0:01:55]}  exd4 {[%clk 0:02:02]} 16. cxd4 {[%clk 0:01:55]}  Bg4 {[%clk 0:01:56]} 17. Bxg4 {[%clk 0:01:34]}  Nxg4 {[%clk 0:01:55]} 18. Qf5 {[%clk 0:01:33]}  Qg6 {[%clk 0:01:19]} 19. Qxg6 {[%clk 0:01:32]}  fxg6 {[%clk 0:01:20]} 20. Rd2 {[%clk 0:01:33]}  cxd4 {[%clk 0:01:20]} 21. h3 {[%clk 0:01:33]}  Rac8+ {[%clk 0:01:19]} 22. Kb1 {[%clk 0:01:32]}  Nf6 {[%clk 0:01:19]} 23. Rxd4 {[%clk 0:01:29]}  Kf7 {[%clk 0:01:07]} 24. Rhd1 {[%clk 0:01:25]}  Rxd4 {[%clk 0:01:07]} 25. Bxd4 {[%clk 0:01:26]}  Rd8 {[%clk 0:01:07]} 26. Kc2 {[%clk 0:01:25]}  a6 {[%clk 0:01:07]} 27. a3 {[%clk 0:01:14]}  g5 {[%clk 0:01:05]} 28. Rd3 {[%clk 0:01:11]}  g4 {[%clk 0:00:45]} 29. Bxf6 {[%clk 0:00:57]}  Rxd3 {[%clk 0:00:10]} 30. Kxd3 {[%clk 0:00:58]}  Kxf6 {[%clk 0:00:09]} 31. hxg4 {[%clk 0:00:58]}  Kg5 {[%clk 0:00:10]} 32. f3 {[%clk 0:00:41]}  Kf4 {[%clk 0:00:10]} 33. Ke2 {[%clk 0:00:41]}  Kg3 {[%clk 0:00:10]} 34. Kf1 {[%clk 0:00:42]}  a5 {[%clk 0:00:06]} 35. a4 {[%clk 0:00:41]}  Kh2 {[%clk 0:00:04]} 36. Kf2 {[%clk 0:00:41]}  g5 {[%clk 0:00:04]} 37. Kf1 {[%clk 0:00:38]}  Kg3 {[%clk 0:00:03]} 38. Kg1 {[%clk 0:00:38]}  Kf4 {[%clk 0:00:03]} 39. Kf2 {[%clk 0:00:38]} 1-0


[Site "https://www.chess.com"]

[Event "Titled Tuesday Blitz February 01 A 2022"]
[White "Shyaamnikhil P"]
[Black "Kanyamarala, Tarun"]
[WhiteFideId "5024218"]
[BlackFideId "45004714"]
[WhiteElo "2292"]
[BlackElo "2144"]
[Result "1-0"]
[Round "08"]
[TimeControl "180+1"]
[Date "2022.02.01"]
[WhiteClock "0:00:19"]
[BlackClock "0:00:03"]

1. d4 {[%clk 0:03:00]}  f5 {[%clk 0:02:59]} 2. g4 {[%clk 0:02:57]}  d5 {[%clk 0:02:52]} 3. gxf5 {[%clk 0:02:50]}  Bxf5 {[%clk 0:02:51]} 4. Bh3 {[%clk 0:02:50]}  Bxh3 {[%clk 0:02:48]} 5. Nxh3 {[%clk 0:02:50]}  Qd7 {[%clk 0:02:49]} 6. Qd3 {[%clk 0:02:49]}  Nc6 {[%clk 0:02:47]} 7. Ng5 {[%clk 0:02:41]}  Nf6 {[%clk 0:02:41]} 8. c3 {[%clk 0:02:35]}  e5 {[%clk 0:02:38]} 9. dxe5 {[%clk 0:02:28]}  Nxe5 {[%clk 0:02:36]} 10. Qe3 {[%clk 0:02:27]}  Qe7 {[%clk 0:02:33]} 11. f4 {[%clk 0:02:21]}  Nc4 {[%clk 0:02:10]} 12. Qxe7+ {[%clk 0:02:15]}  Kxe7 {[%clk 0:02:00]} 13. b3 {[%clk 0:02:06]}  Nd6 {[%clk 0:01:55]} 14. Ba3 {[%clk 0:02:05]}  Kd7 {[%clk 0:01:51]} 15. Rg1 {[%clk 0:01:57]}  h6 {[%clk 0:01:43]} 16. Bxd6 {[%clk 0:01:53]}  Bxd6 {[%clk 0:01:33]} 17. Nf7 {[%clk 0:01:53]}  Rhg8 {[%clk 0:01:29]} 18. Nxd6 {[%clk 0:01:51]}  Kxd6 {[%clk 0:01:29]} 19. Nd2 {[%clk 0:01:50]}  Rae8 {[%clk 0:01:16]} 20. Nf3 {[%clk 0:01:42]}  Ne4 {[%clk 0:01:14]} 21. Rg6+ {[%clk 0:01:36]}  Re6 {[%clk 0:01:14]} 22. Rxe6+ {[%clk 0:01:31]}  Kxe6 {[%clk 0:01:14]} 23. Rd1 {[%clk 0:01:29]}  c6 {[%clk 0:01:06]} 24. c4 {[%clk 0:01:27]}  dxc4 {[%clk 0:00:55]} 25. bxc4 {[%clk 0:01:28]}  Rf8 {[%clk 0:00:51]} 26. e3 {[%clk 0:01:24]}  g5 {[%clk 0:00:43]} 27. Rd4 {[%clk 0:01:20]}  Nc3 {[%clk 0:00:38]} 28. Kd2 {[%clk 0:01:11]}  Nxa2 {[%clk 0:00:23]} 29. c5 {[%clk 0:01:11]}  gxf4 {[%clk 0:00:21]} 30. exf4 {[%clk 0:01:09]}  Rg8 {[%clk 0:00:19]} 31. Rd6+ {[%clk 0:00:51]}  Kf5 {[%clk 0:00:16]} 32. Ke3 {[%clk 0:00:45]}  Nb4 {[%clk 0:00:13]} 33. Nd4+ {[%clk 0:00:36]}  Kg4 {[%clk 0:00:13]} 34. f5 {[%clk 0:00:35]}  Nd5+ {[%clk 0:00:12]} 35. Ke4 {[%clk 0:00:33]}  Re8+ {[%clk 0:00:10]} 36. Re6 {[%clk 0:00:29]}  Nc3+ {[%clk 0:00:03]} 37. Ke5 {[%clk 0:00:27]}  Rd8 {[%clk 0:00:03]} 38. Rg6+ {[%clk 0:00:24]}  Kh5 {[%clk 0:00:03]} 39. Ne6 {[%clk 0:00:21]}  Rd5+ {[%clk 0:00:02]} 40. Kf4 {[%clk 0:00:21]}  Ne4 {[%clk 0:00:03]} 41. Kxe4 {[%clk 0:00:19]} 1-0


[Site "https://www.chess.com"]

[Event "Titled Tuesday Blitz February 01 A 2022"]
[White "Svane, Frederik"]
[Black "Bashirli, Nail"]
[WhiteFideId "12923044"]
[BlackFideId "13406809"]
[WhiteElo "2802"]
[BlackElo "2676"]
[Result "1-0"]
[Round "08"]
[TimeControl "180+1"]
[Date "2022.02.01"]
[WhiteClock "0:00:06"]
[BlackClock "0:00:05"]

1. b3 {[%clk 0:03:00]}  c5 {[%clk 0:02:57]} 2. Bb2 {[%clk 0:03:00]}  d5 {[%clk 0:02:57]} 3. e3 {[%clk 0:03:00]}  f6 {[%clk 0:02:57]} 4. d4 {[%clk 0:02:55]}  Nc6 {[%clk 0:02:56]} 5. Nf3 {[%clk 0:02:54]}  e6 {[%clk 0:02:55]} 6. Bd3 {[%clk 0:02:53]}  Bd6 {[%clk 0:02:55]} 7. O-O {[%clk 0:02:51]}  Nge7 {[%clk 0:02:55]} 8. dxc5 {[%clk 0:02:49]}  Bxc5 {[%clk 0:02:56]} 9. c4 {[%clk 0:02:50]}  O-O {[%clk 0:02:56]} 10. cxd5 {[%clk 0:02:50]}  exd5 {[%clk 0:02:56]} 11. Bxh7+ {[%clk 0:02:46]}  Kxh7 {[%clk 0:02:55]} 12. Qc2+ {[%clk 0:02:46]}  Bf5 {[%clk 0:02:55]} 13. Qxc5 {[%clk 0:02:47]}  Rc8 {[%clk 0:02:55]} 14. Qb5 {[%clk 0:02:42]}  a6 {[%clk 0:02:55]} 15. Qe2 {[%clk 0:02:38]}  Bg4 {[%clk 0:02:51]} 16. Ng5+ {[%clk 0:02:38]}  fxg5 {[%clk 0:02:50]} 17. Qxg4 {[%clk 0:02:39]}  Nf5 {[%clk 0:02:48]} 18. Nd2 {[%clk 0:02:34]}  Nh6 {[%clk 0:02:45]} 19. Qh5 {[%clk 0:02:29]}  g4 {[%clk 0:02:42]} 20. g3 {[%clk 0:01:44]}  g6 {[%clk 0:02:21]} 21. Qh4 {[%clk 0:01:41]}  Qxh4 {[%clk 0:02:15]} 22. gxh4 {[%clk 0:01:42]}  Nf5 {[%clk 0:02:13]} 23. Rac1 {[%clk 0:01:29]}  Nxh4 {[%clk 0:02:10]} 24. Rc5 {[%clk 0:01:30]}  Rf5 {[%clk 0:02:07]} 25. h3 {[%clk 0:00:55]}  g3 {[%clk 0:01:55]} 26. fxg3 {[%clk 0:00:53]}  Rxf1+ {[%clk 0:01:54]} 27. Nxf1 {[%clk 0:00:51]}  Nf3+ {[%clk 0:01:54]} 28. Kf2 {[%clk 0:00:51]}  Rf8 {[%clk 0:01:53]} 29. Ke2 {[%clk 0:00:43]}  Ng1+ {[%clk 0:01:41]} 30. Ke1 {[%clk 0:00:43]}  Nf3+ {[%clk 0:01:34]} 31. Ke2 {[%clk 0:00:42]}  Ng1+ {[%clk 0:01:34]} 32. Ke1 {[%clk 0:00:43]}  Nf3+ {[%clk 0:01:34]} 33. Kd1 {[%clk 0:00:42]}  Nfe5 {[%clk 0:01:23]} 34. Ke2 {[%clk 0:00:35]}  Nd3 {[%clk 0:01:12]} 35. Kxd3 {[%clk 0:00:29]}  Rxf1 {[%clk 0:01:12]} 36. Bc3 {[%clk 0:00:27]}  Rd1+ {[%clk 0:00:47]} 37. Kc2 {[%clk 0:00:17]}  Rg1 {[%clk 0:00:39]} 38. g4 {[%clk 0:00:16]}  Rg2+ {[%clk 0:00:24]} 39. Kd3 {[%clk 0:00:15]}  Rxa2 {[%clk 0:00:19]} 40. Rxd5 {[%clk 0:00:15]}  Kg8 {[%clk 0:00:18]} 41. Rd7 {[%clk 0:00:13]}  Rh2 {[%clk 0:00:17]} 42. Rxb7 {[%clk 0:00:12]}  Rxh3 {[%clk 0:00:17]} 43. Rb6 {[%clk 0:00:12]}  Ne7 {[%clk 0:00:15]} 44. Rxa6 {[%clk 0:00:12]}  Rh1 {[%clk 0:00:15]} 45. Bd4 {[%clk 0:00:09]}  Rb1 {[%clk 0:00:14]} 46. Rb6 {[%clk 0:00:06]}  Nd5 {[%clk 0:00:13]} 47. Rb7 {[%clk 0:00:06]}  Rd1+ {[%clk 0:00:12]} 48. Ke4 {[%clk 0:00:06]}  Nxe3 {[%clk 0:00:04]} 49. Bxe3 {[%clk 0:00:06]}  Rf1 {[%clk 0:00:05]} 50. b4 {[%clk 0:00:06]}  Rf7 {[%clk 0:00:03]} 51. Rxf7 {[%clk 0:00:06]}  Kh8 {[%clk 0:00:04]} 52. b5 {[%clk 0:00:07]}  g5 {[%clk 0:00:05]} 53. b6 {[%clk 0:00:08]}  Kg8 {[%clk 0:00:05]} 54. b7 {[%clk 0:00:06]} 1-0


[Site "https://www.chess.com"]

[Event "Titled Tuesday Blitz February 01 A 2022"]
[White "Szpar, Milosz"]
[Black "Zhigalko, Sergei"]
[WhiteFideId "1184989"]
[BlackFideId "13502956"]
[WhiteElo "2735"]
[BlackElo "2861"]
[Result "0-1"]
[Round "08"]
[TimeControl "180+1"]
[Date "2022.02.01"]
[WhiteClock "0:01:08"]
[BlackClock "0:01:32"]

1. e4 {[%clk 0:03:00]}  c5 {[%clk 0:02:57]} 2. Nf3 {[%clk 0:03:00]}  Nc6 {[%clk 0:02:57]} 3. Bb5 {[%clk 0:02:59]}  Nf6 {[%clk 0:02:57]} 4. Nc3 {[%clk 0:02:58]}  Qc7 {[%clk 0:02:58]} 5. O-O {[%clk 0:02:57]}  Nd4 {[%clk 0:02:58]} 6. Re1 {[%clk 0:02:55]}  a6 {[%clk 0:02:58]} 7. Bf1 {[%clk 0:02:51]}  Ng4 {[%clk 0:02:58]} 8. e5 {[%clk 0:02:48]}  h5 {[%clk 0:02:57]} 9. d3 {[%clk 0:02:41]}  e6 {[%clk 0:02:36]} 10. Bf4 {[%clk 0:02:38]}  d6 {[%clk 0:02:32]} 11. h3 {[%clk 0:01:53]}  Nxf3+ {[%clk 0:02:27]} 12. Qxf3 {[%clk 0:01:54]}  Nxe5 {[%clk 0:02:28]} 13. Qg3 {[%clk 0:01:53]}  h4 {[%clk 0:02:15]} 14. Qg5 {[%clk 0:01:53]}  f6 {[%clk 0:02:07]} 15. Nd5 {[%clk 0:01:10]}  exd5 {[%clk 0:01:53]} 16. Qg6+ {[%clk 0:01:10]}  Qf7 {[%clk 0:01:53]} 17. Qxf7+ {[%clk 0:01:10]}  Kxf7 {[%clk 0:01:53]} 18. d4 {[%clk 0:01:08]}  cxd4 {[%clk 0:01:47]} 19. Rad1 {[%clk 0:01:08]}  g5 {[%clk 0:01:43]} 20. Bh2 {[%clk 0:01:08]}  Nc6 {[%clk 0:01:43]} 21. c3 {[%clk 0:01:09]}  Bf5 {[%clk 0:01:38]} 22. cxd4 {[%clk 0:01:09]}  Rc8 {[%clk 0:01:37]} 23. Rc1 {[%clk 0:01:09]}  Be7 {[%clk 0:01:35]} 24. Be2 {[%clk 0:01:08]}  Nxd4 {[%clk 0:01:32]} 0-1


[Site "https://www.chess.com"]

[Event "Titled Tuesday Blitz February 01 A 2022"]
[White "Abdrlauf, Elham"]
[Black "Narayanan.S.L"]
[WhiteFideId "1533533"]
[BlackFideId "5058422"]
[WhiteElo "2334"]
[BlackElo "2494"]
[Result "0-1"]
[Round "09"]
[TimeControl "180+1"]
[Date "2022.02.01"]
[WhiteClock "0:00:02"]
[BlackClock "0:01:17"]

1. e4 {[%clk 0:02:59]}  c5 {[%clk 0:02:59]} 2. Nf3 {[%clk 0:03:00]}  d6 {[%clk 0:02:59]} 3. d4 {[%clk 0:03:00]}  cxd4 {[%clk 0:02:59]} 4. Nxd4 {[%clk 0:03:01]}  Nf6 {[%clk 0:02:59]} 5. Nc3 {[%clk 0:03:01]}  a6 {[%clk 0:02:59]} 6. Bc4 {[%clk 0:03:02]}  e6 {[%clk 0:02:59]} 7. Bb3 {[%clk 0:03:02]}  Nbd7 {[%clk 0:02:59]} 8. f4 {[%clk 0:03:02]}  Nc5 {[%clk 0:02:59]} 9. f5 {[%clk 0:03:03]}  Be7 {[%clk 0:02:57]} 10. Qf3 {[%clk 0:03:02]}  Qc7 {[%clk 0:02:54]} 11. Be3 {[%clk 0:03:02]}  b5 {[%clk 0:02:52]} 12. fxe6 {[%clk 0:02:41]}  fxe6 {[%clk 0:02:51]} 13. e5 {[%clk 0:02:42]}  dxe5 {[%clk 0:02:34]} 14. Ndxb5 {[%clk 0:01:53]}  axb5 {[%clk 0:02:30]} 15. Qxa8 {[%clk 0:01:54]}  O-O {[%clk 0:02:27]} 16. Nxb5 {[%clk 0:01:27]}  Qd7 {[%clk 0:02:20]} 17. Qa7 {[%clk 0:01:15]}  Qxb5 {[%clk 0:02:13]} 18. Qxe7 {[%clk 0:01:15]}  Qb4+ {[%clk 0:02:13]} 19. Kd1 {[%clk 0:00:51]}  Nfe4 {[%clk 0:01:52]} 20. c3 {[%clk 0:00:35]}  Qb5 {[%clk 0:01:47]} 21. c4 {[%clk 0:00:18]}  Qc6 {[%clk 0:01:45]} 22. Kc2 {[%clk 0:00:14]}  Rf7 {[%clk 0:01:36]} 23. Qh4 {[%clk 0:00:14]}  Ba6 {[%clk 0:01:22]} 24. Rad1 {[%clk 0:00:10]}  h6 {[%clk 0:01:20]} 25. Rhf1 {[%clk 0:00:09]}  Rxf1 {[%clk 0:01:17]} 26. Rxf1 {[%clk 0:00:10]}  Nxb3 {[%clk 0:01:18]} 27. axb3 {[%clk 0:00:10]}  Bxc4 {[%clk 0:01:18]} 28. Qe1 {[%clk 0:00:02]}  Bxf1+ {[%clk 0:01:17]} 0-1


[Site "https://www.chess.com"]